bitfinex/quotes_ETHUSD_20251124
["timestamp","ask_amount","ask_price","bid_price","bid_amount"]
[1763975529935,0.23,2821.3,2820.9,0.001]
[1763975531471,0.471,2821.0,2820.9,0.001]
[1763975531676,0.4555,2821.2,2820.9,0.001]
[1763975531878,0.23,2821.3,2820.9,0.3721]
[1763975533381,0.23,2821.3,2820.9,0.001]
[1763975535467,0.6855,2821.3,2820.9,0.001]
[1763975536783,0.471,2821.0,2820.9,0.001]
[1763975537383,0.4555,2821.2,2820.9,0.001]
[1763975537896,0.471,2821.0,2820.9,0.001]
[1763975539065,0.9265,2821.0,2820.9,0.001]
[1763975539687,0.9257,2821.0,2820.9,0.001]
[1763975544532,1.1557,2821.0,2820.9,0.001]
[1763975545209,1.1577,2821.0,2820.9,0.001]
[1763975547635,0.4722,2821.0,2820.9,0.001]
[1763975548043,0.9277,2821.0,2820.9,0.001]
[1763975548335,0.4722,2821.0,2820.9,0.001]
[1763975549444,0.8010549,2821.0,2820.9,0.001]
[1763975549630,1.2565549,2821.0,2820.9,0.001]
[1763975550410,1.256684,2821.0,2820.9,0.001]
[1763975550607,0.801184,2821.0,2820.9,0.001]
[1763975550933,0.002,2821.0,2820.9,0.3729]
[1763975554115,0.9285,2821.0,2820.9,0.001]
[1763975554514,0.9285,2821.0,2820.9,0.3729]
[1763975554515,0.002,2821.0,2820.9,0.3729]
[1763975555244,0.002,2821.0,2820.9,0.001]
[1763975556054,0.002,2821.0,2820.9,0.3729]
[1763975556832,0.002,2821.0,2820.9,0.001]
[1763975556833,0.5009,2821.0,2820.9,0.001]
[1763975557034,0.9544,2821.0,2820.9,0.001]
[1763975558460,0.9544,2821.0,2819.0,0.1882]
[1763975558461,16.656921,2820.9,2819.0,0.1882]
[1763975558624,6.60237262,2819.7,2818.7,0.0951]
[1763975558817,3.26441266,2819.6,2818.7,0.0951]
[1763975559019,1.79907914,2819.6,2818.7,0.0951]
[1763975559226,0.229,2819.5,2818.8,0.3739]
[1763975561317,0.4535,2819.8,2818.8,0.3739]
[1763975561521,0.229,2819.7,2818.8,0.3739]
[1763975561720,0.4535,2819.8,2818.8,0.3739]
[1763975561936,0.229,2819.6,2818.8,0.3739]
[1763975562925,0.4535,2819.5,2818.7,0.0951]
[1763975563119,0.4535,2819.5,2818.5,0.3739]
[1763975563120,0.4535,2819.5,2818.5,0.07035]
[1763975563319,6.79387262,2819.9,2817.9,3.54874197]
[1763975563320,0.2282,2819.4,2817.9,3.54874197]
[1763975563539,0.2282,2819.4,2818.4,0.1]
[1763975563829,0.2282,2819.4,2818.0,0.3732442]
[1763975563830,0.2282,2819.4,2818.8,0.001]
[1763975564649,0.4535,2819.6,2818.8,0.001]
[1763975565027,0.229,2819.5,2818.8,0.001]
[1763975565432,0.4625,2819.4,2818.8,0.001]
[1763975566958,0.6849,2818.9,2818.8,0.001]
[1763975567347,1.3764,2818.9,2818.8,0.001]
[1763975568062,0.1878,2819.2,2818.8,0.001]
[1763975568276,0.229,2818.9,2818.8,0.001]
[1763975568461,0.1878,2819.2,2818.8,0.001]
[1763975568462,0.6503,2819.2,2818.8,0.001]
[1763975568663,0.229,2819.1,2818.8,0.001]
[1763975569574,0.229,2819.0,2818.8,0.001]
[1763975569775,0.229,2818.9,2818.8,0.001]
[1763975570163,0.6503,2819.5,2818.8,0.001]
[1763975570378,0.229,2819.4,2818.8,0.001]
[1763975570850,0.229,2819.3,2818.8,0.001]
[1763975571051,0.229,2819.2,2818.8,0.001]
[1763975571776,0.1878,2819.5,2818.8,0.001]
[1763975572148,0.229,2819.4,2818.8,0.001]
[1763975572550,0.1878,2819.5,2818.8,0.001]
[1763975572875,0.229,2819.4,2818.8,0.001]
[1763975573192,0.1878,2819.5,2818.8,0.001]
[1763975573475,0.229,2819.3,2818.8,0.001]
[1763975573845,0.4625,2819.2,2818.8,0.001]
[1763975574255,0.4971,2818.9,2818.8,0.001]
[1763975574694,0.9596,2818.9,2818.8,0.001]
[1763975576391,0.4625,2819.2,2818.8,0.001]
[1763975576560,0.229,2819.1,2818.8,0.001]
[1763975576881,0.229,2819.0,2818.8,0.001]
[1763975577085,0.1878,2819.5,2818.8,0.001]
[1763975577285,0.4625,2819.2,2818.8,0.001]
[1763975577453,0.1878,2819.5,2818.8,0.001]
[1763975577779,0.229,2819.4,2818.8,0.001]
[1763975577965,0.6503,2819.5,2818.8,0.001]
[1763975578169,0.229,2819.3,2818.8,0.001]
[1763975578370,0.229,2819.2,2818.8,0.001]
[1763975578893,0.229,2819.1,2818.8,0.001]
[1763975579891,0.4625,2819.4,2818.8,0.001]
[1763975580060,0.229,2819.3,2818.8,0.001]
[1763975580247,0.1878,2819.5,2818.8,0.001]
[1763975580452,0.229,2819.4,2818.8,0.001]
[1763975580652,0.229,2819.3,2818.8,0.001]
[1763975581308,0.4625,2819.6,2818.8,0.001]
[1763975581468,0.229,2819.2,2818.8,0.001]
[1763975584001,0.6849,2818.9,2818.8,0.001]
[1763975584299,0.1878,2819.3,2818.8,0.001]
[1763975584454,0.229,2818.9,2818.8,0.001]
[1763975585087,0.1878,2819.3,2818.8,0.001]
[1763975585255,0.229,2818.9,2818.8,0.001]
[1763975585884,0.6503,2819.3,2818.8,0.001]
[1763975586192,0.6915,2819.2,2818.8,0.001]
[1763975587195,0.6907,2819.2,2818.8,0.001]
[1763975587488,0.4886,2818.9,2818.8,0.001]
[1763975587965,0.9876,2818.9,2818.8,0.001]
[1763975588171,0.4886,2818.9,2818.8,0.001]
[1763975590878,0.9876,2818.9,2818.8,0.001]
[1763975591395,0.229,2818.9,2818.8,0.001]
[1763975591978,0.32945644,2819.1,2818.8,0.001]
[1763975592192,0.229,2818.9,2818.8,0.001]
[1763975592976,0.7176,2818.9,2818.8,0.001]
[1763975593186,1.2166,2818.9,2818.8,0.001]
[1763975593572,0.1878,2819.3,2818.8,0.001]
[1763975593790,0.229,2818.9,2818.8,0.001]
[1763975594786,0.32969084,2819.0,2818.8,0.001]
[1763975594981,0.229,2818.9,2818.8,0.001]
[1763975595575,0.7176,2818.9,2818.8,0.001]
[1763975595771,0.1878,2819.3,2818.8,0.001]
[1763975596102,0.002,2819.4,2819.0,0.1]
[1763975596302,0.231,2819.4,2818.8,0.101]
[1763975596506,0.231,2819.4,2818.9,0.1]
[1763975596677,0.231,2819.4,2818.8,0.001]
[1763975596877,0.231,2819.4,2819.1,0.1]
[1763975597307,0.002,2819.4,2819.1,0.1]
[1763975597504,0.002,2819.4,2818.8,6.60337262]
[1763975597505,0.002,2819.4,2819.3,0.1]
[1763975598306,0.002,2819.4,2819.2,0.1]
[1763975598898,0.002,2819.4,2819.0,1.05564855]
[1763975599101,0.002,2819.4,2819.0,0.1]
[1763975599420,0.231,2819.4,2818.8,0.001]
[1763975600033,0.229,2819.3,2818.8,0.001]
[1763975600187,0.002,2819.4,2818.8,0.001]
[1763975600382,0.002,2819.4,2819.1,0.1]
[1763975600940,0.002,2819.4,2818.9,0.1]
[1763975601623,0.002,2819.4,2818.8,0.101]
[1763975602120,0.002,2819.4,2818.8,0.001]
[1763975602324,0.002,2819.4,2818.8,0.101]
[1763975602530,0.002,2819.4,2818.9,0.1]
[1763975602901,0.002,2819.4,2819.1,0.1]
[1763975604148,0.002,2819.4,2818.8,0.001]
[1763975604439,0.002,2819.4,2819.0,0.1]
[1763975606091,0.002,2819.4,2818.8,0.001]
[1763975606291,0.002,2819.4,2819.1,0.1]
[1763975606492,0.002,2819.4,2819.0,0.1]
[1763975606732,0.002,2819.4,2819.2,0.1]
[1763975608096,0.002,2819.4,2819.1,0.1]
[1763975608454,0.002,2819.4,2819.0,0.1]
[1763975609028,0.002,2819.4,2819.1,0.1]
[1763975609630,0.002,2819.4,2819.0,0.1]
[1763975609831,0.002,2819.4,2819.1,0.1]
[1763975610903,0.0012,2819.4,2819.1,0.1]
[1763975611247,0.0012,2819.4,2819.2,0.1]
[1763975611451,0.0012,2819.4,2818.8,10.1509151]
[1763975611654,0.0012,2819.4,2819.3,0.1]
[1763975613553,0.0012,2819.4,2819.2,0.1]
[1763975613757,0.0012,2819.4,2819.3,0.1]
[1763975614457,0.0012,2819.4,2819.1,0.1]
[1763975614627,0.0012,2819.4,2819.3,0.1]
[1763975616057,0.0012,2819.4,2819.2,0.405504]
[1763975616354,0.0012,2819.4,2819.3,0.13546979]
[1763975616852,0.0012,2819.4,2819.3,0.85392376]
[1763975617165,0.0012,2819.4,2819.3,1.22395797]
[1763975618437,0.0012,2819.4,2819.3,4.77093771]
[1763975618880,0.0012,2819.4,2819.3,1.22395797]
[1763975619060,0.0012,2819.4,2819.3,4.77093771]
[1763975619446,0.0012,2819.4,2819.3,4.8064075]
[1763975619756,0.0012,2819.4,2819.3,5.0364075]
[1763975619937,0.0012,2819.4,2819.3,5.00093771]
[1763975620335,0.002,2819.7,2819.6,0.1]
[1763975620561,0.002,2819.7,2819.6,7.72745798]
[1763975621168,0.002,2819.7,2819.6,11.27406033]
[1763975622252,0.002,2819.7,2819.6,7.72745798]
[1763975622532,0.002,2819.7,2819.6,11.27406033]
[1763975622749,0.002,2819.7,2819.6,7.72745798]
[1763975623165,0.002,2819.7,2819.6,11.27406033]
[1763975623355,0.002,2819.7,2819.6,7.72745798]
[1763975623581,0.002,2819.7,2819.6,0.6783881]
[1763975623778,0.002,2819.7,2819.6,0.505504]
[1763975626490,0.002,2819.7,2819.6,0.505504]
[1763975626657,0.002,2819.7,2819.6,1.00498551]
[1763975627055,0.002,2819.7,2819.6,0.505504]
[1763975629281,0.002,2819.7,2819.6,0.54097002]
[1763975629867,0.002,2819.7,2819.6,4.05210635]
[1763975630067,0.002,2819.7,2819.6,0.505504]
[1763975631578,0.002,2819.7,2819.6,0.54097002]
[1763975631780,0.002,2819.7,2819.6,0.94973626]
[1763975632493,0.002,2819.7,2819.6,11.50994247]
[1763975633861,0.002,2819.7,2819.6,12.41693511]
[1763975634276,0.002,2819.7,2819.6,0.40876624]
[1763975634590,0.002,2819.7,2819.6,0.1]
[1763975634889,0.0012,2819.7,2819.6,0.1]
[1763975636286,0.0012,2819.7,2819.6,0.505504]
[1763975636798,0.4646,2819.7,2819.4,0.1]
[1763975637002,0.4634,2819.5,2819.3,0.71945397]
[1763975637213,0.0012,2819.7,2819.3,0.001]
[1763975637365,0.928,2819.4,2819.0,0.001]
[1763975637559,0.4634,2819.1,2819.0,0.001]
[1763975637986,0.928,2819.1,2819.0,0.001]
[1763975642674,0.4634,2819.1,2819.0,0.101]
[1763975642881,0.928,2819.1,2819.0,0.001]
[1763975658342,0.9272,2819.1,2819.0,0.001]
[1763975659277,1.19418966,2819.1,2819.0,0.001]
[1763975659683,2.27430303,2819.1,2819.0,0.001]
[1763975660860,1.19418966,2819.1,2819.0,0.001]
[1763975661647,0.9272,2819.1,2819.0,0.001]
[1763975661851,1.1562,2819.1,2819.0,0.001]
[1763975666289,0.002,2819.3,2819.0,0.001]
[1763975666490,0.6893,2819.3,2819.0,0.001]
[1763975666863,0.476,2819.1,2819.0,0.001]
[1763975667388,0.9343,2819.1,2819.0,0.001]
[1763975668172,0.476,2819.1,2819.0,0.001]
[1763975668380,0.4603,2819.3,2819.0,0.001]
[1763975668578,0.002,2819.3,2819.0,0.50057398]
[1763975668788,0.002,2819.3,2819.1,0.1]
[1763975669104,0.002,2819.3,2819.0,0.50057398]
[1763975669289,0.002,2819.3,2819.0,0.60057398]
[1763975669490,0.4603,2819.3,2819.0,0.50057398]
[1763975669705,0.4603,2819.3,2819.0,0.60057398]
[1763975670214,0.002,2819.3,2819.0,0.50057398]
[1763975670374,0.002,2819.3,2819.1,0.1]
[1763975670570,0.002,2819.3,2819.0,0.50057398]
[1763975670764,0.002,2819.3,2819.2,0.1]
[1763975671201,0.002,2819.3,2819.2,0.55943138]
[1763975673271,0.002,2819.3,2819.2,0.65943138]
[1763975673911,0.002,2819.3,2819.2,0.55943138]
[1763975674085,0.002,2819.3,2819.2,0.65943138]
[1763975674288,0.002,2819.3,2819.2,0.55943138]
[1763975674488,0.002,2819.3,2819.2,0.65943138]
[1763975674698,0.002,2819.3,2819.2,4.20653694]
[1763975675690,0.002,2819.3,2819.2,0.65943138]
[1763975676495,0.002,2819.3,2819.2,4.61204094]
[1763975676694,0.002,2819.3,2819.2,10.06862958]
[1763975676893,0.002,2819.6,2819.5,4.05223214]
[1763975677098,0.002,2819.6,2819.5,13.38307518]
[1763975677296,0.002,2819.6,2819.5,9.45119518]
[1763975678417,0.002,2819.6,2819.5,0.50522321]
[1763975678619,0.002,2819.6,2819.5,0.1]
[1763975678812,0.002,2819.6,2819.4,4.93921766]
[1763975679010,0.9873,2819.5,2819.2,0.55943138]
[1763975679314,0.9873,2819.5,2819.0,0.001]
[1763975679315,0.4883,2819.3,2819.0,0.001]
[1763975679516,0.4883,2819.1,2819.0,0.101]
[1763975679908,0.499,2819.5,2819.1,0.1]
[1763975680718,0.499,2819.5,2819.2,0.1]
[1763975681087,0.4883,2819.3,2819.1,0.1]
[1763975681316,0.499,2819.5,2819.1,0.1]
[1763975681622,0.4883,2819.2,2819.0,0.001]
[1763975681985,0.002,2819.6,2819.1,0.1]
[1763975682198,0.4883,2819.1,2819.0,0.101]
[1763975682518,0.4982,2819.2,2819.0,0.101]
[1763975682717,0.002,2819.6,2819.0,0.101]
[1763975684285,0.499,2819.5,2819.0,0.101]
[1763975684714,0.499,2819.5,2819.0,0.001]
[1763975685022,0.499,2819.5,2819.0,0.101]
[1763975685516,0.499,2819.5,2819.1,0.1]
[1763975685717,0.499,2819.5,2819.0,0.101]
[1763975686708,0.002,2819.6,2819.1,0.1]
[1763975687106,0.4605,2819.6,2819.1,0.1]
[1763975687347,0.4605,2819.6,2819.2,0.1]
[1763975687511,0.002,2819.6,2819.0,0.001]
[1763975687710,0.002,2819.6,2819.4,0.1]
[1763975687909,0.002,2819.6,2819.5,0.1]
[1763975688114,0.002,2819.6,2819.2,0.405504]
[1763975688316,0.002,2819.6,2819.5,0.1]
[1763975700838,0.9438,2819.6,2819.2,0.1]
[1763975701058,0.4833,2819.3,2819.1,0.001]
[1763975701236,0.4833,2819.2,2819.1,0.101]
[1763975701543,0.002,2819.6,2819.5,0.1]
[1763975701747,0.4585,2819.5,2819.1,0.101]
[1763975701965,0.002,2819.6,2819.1,0.001]
[1763975702165,0.002,2819.6,2819.4,0.1]
[1763975702327,0.002,2819.6,2819.5,0.1]
[1763975702533,0.002,2819.6,2819.5,4.9386054]
[1763975704525,0.002,2819.6,2819.5,0.1]
[1763975706122,0.0012,2819.6,2819.5,0.1]
[1763975708658,0.0012,2819.6,2819.5,4.31669942]
[1763975708861,0.0012,2819.6,2819.5,5.76348787]
[1763975709024,0.0012,2819.6,2819.5,5.72802059]
[1763975709225,0.0012,2819.6,2819.5,8.26672059]
[1763975709451,0.0012,2819.6,2819.5,5.72802059]
[1763975709647,0.0012,2819.6,2819.5,9.32604623]
[1763975709923,0.0012,2819.6,2819.5,10.65590623]
[1763975710124,0.0012,2819.6,2819.5,1.67578845]
[1763975710424,0.9392,2819.6,2819.4,0.1]
[1763975710758,0.9392,2819.6,2819.1,0.001]
[1763975710759,0.4805,2819.2,2819.1,0.001]
[1763975711136,0.938,2819.2,2819.1,0.001]
[1763975712164,0.0012,2819.6,2819.1,0.001]
[1763975712349,0.4575,2819.5,2819.1,0.001]
[1763975712549,0.4805,2819.2,2819.1,0.001]
[1763975712925,0.938,2819.2,2819.1,0.001]
[1763975713326,0.4805,2819.2,2819.1,0.001]
[1763975713652,0.938,2819.2,2819.1,0.001]
[1763975713850,0.4587,2819.6,2819.1,0.101]
[1763975714160,0.4587,2819.6,2819.4,0.1]
[1763975714359,0.4587,2819.6,2819.5,0.1]
[1763975714360,0.0012,2819.6,2819.5,0.1]
[1763975716469,0.0012,2819.6,2819.5,0.50016518]
[1763975716956,0.4817,2819.6,2819.5,0.4646979]
[1763975717156,0.0012,2819.6,2819.5,0.1]
[1763975717412,0.4817,2819.6,2819.5,0.1]
[1763975717552,0.4817,2819.6,2819.1,0.001]
[1763975717553,0.9392,2819.6,2819.1,0.001]
[1763975717766,0.4805,2819.2,2819.1,0.001]
[1763975717956,0.938,2819.2,2819.1,0.001]
[1763975718155,0.4575,2819.5,2819.1,0.101]
[1763975718461,0.0012,2819.6,2819.4,0.1]
[1763975718966,0.4805,2819.5,2819.4,0.1]
[1763975719356,0.0012,2819.6,2819.5,0.1]
[1763975719656,0.0012,2819.6,2819.1,0.001]
[1763975719657,0.9392,2819.6,2819.4,0.1]
[1763975720183,0.0012,2819.6,2819.1,0.001]
[1763975720352,0.0012,2819.6,2819.1,0.03647231]
[1763975720557,0.0012,2819.6,2819.2,0.44917759]
[1763975720867,0.0012,2819.6,2819.4,0.1]
[1763975721061,0.0012,2819.6,2819.5,0.1]
[1763975721278,0.4805,2819.2,2819.1,0.001]
[1763975722398,0.4575,2819.2,2818.3,0.1]
[1763975722596,0.4805,2819.1,2818.4,0.1]
[1763975722761,0.4805,2819.1,2818.2,6.63982624]
[1763975722967,0.4805,2819.1,2818.8,0.1]
[1763975723168,0.4575,2819.4,2818.8,0.1]
[1763975723375,0.4575,2819.4,2818.9,0.1]
[1763975723581,0.4575,2819.4,2819.0,0.1]
[1763975723775,0.4575,2819.4,2818.8,0.1]
[1763975723981,0.4575,2819.4,2818.9,0.1]
[1763975724281,0.4575,2819.4,2818.7,0.1]
[1763975724478,0.6785,2818.8,2818.7,0.1]
[1763975724802,0.6785,2818.8,2818.3,0.1]
[1763975725008,0.4575,2818.7,2818.3,0.1]
[1763975725205,0.6555,2819.2,2818.7,0.0788]
[1763975725387,0.6555,2819.2,2818.5,6.6043426]
[1763975725388,0.6555,2819.2,2818.9,0.1]
[1763975725766,0.4805,2819.0,2818.9,0.1]
[1763975726201,0.938,2819.0,2818.5,6.6043426]
[1763975726409,0.938,2819.0,2818.7,0.1]
[1763975726780,0.198,2819.2,2818.8,0.44098008]
[1763975726986,0.6555,2819.2,2819.0,0.1]
[1763975727184,0.4805,2819.1,2819.0,0.1]
[1763975727811,0.4805,2819.1,2818.5,10.15230236]
[1763975727812,0.938,2819.1,2818.5,0.1]
[1763975728113,0.4575,2819.0,2818.8,0.1]
[1763975728406,0.4805,2818.9,2818.8,0.1]
[1763975728988,0.938,2818.9,2818.6,0.1]
[1763975729184,0.4805,2818.7,2818.5,6.6043426]
[1763975729397,0.4575,2819.1,2818.5,6.7043426]
[1763975729604,0.4567,2819.1,2818.8,0.001]
[1763975730001,0.4805,2818.9,2818.8,0.001]
[1763975731825,0.938,2818.9,2818.8,0.001]
[1763975739340,1.48106575,2818.9,2818.8,0.001]
[1763975739509,0.938,2818.9,2818.8,0.001]
[1763975739916,0.938,2818.9,2818.5,0.001]
[1763975740113,0.4693,2818.6,2818.5,0.001]
[1763975740345,1.1515,2818.6,2818.5,0.001]
[1763975743844,1.1515,2818.6,2817.2,7.1368352]
[1763975743845,5.98958683,2818.6,2816.8,0.0796]
[1763975744046,5.98958683,2818.6,2815.3,1.279]
[1763975744047,0.1874,2817.4,2816.2,3.63037694]
[1763975744203,0.4542,2817.3,2816.9,0.1]
[1763975744410,0.4542,2817.3,2816.8,0.1]
[1763975744939,0.4693,2816.9,2816.8,0.1]
[1763975745134,0.4693,2816.9,2816.3,0.0796]
[1763975745444,0.4693,2816.9,2816.8,0.1]
[1763975745751,0.4693,2816.9,2816.2,3.63037694]
[1763975745752,0.4693,2816.9,2816.2,0.0796]
[1763975745921,0.4693,2816.9,2814.7,3.55268966]
[1763975745922,0.4854,2816.3,2813.5,10.16968969]
[1763975746259,0.6786,2816.8,2813.8,0.4693]
[1763975746260,2.088365,2814.9,2813.8,0.4693]
[1763975746409,1.10119264,2815.0,2812.0,7.0572352]
[1763975746410,0.6796,2813.8,2812.0,7.0572352]
[1763975746604,0.6796,2813.8,2812.4,0.1]
[1763975746605,0.4854,2813.0,2812.4,0.1]
[1763975746804,0.1942,2812.9,2812.2,0.1119]
[1763975747231,0.6448,2813.2,2812.4,0.1]
[1763975747459,0.6448,2813.2,2812.2,0.1119]
[1763975747460,0.6448,2813.2,2812.3,0.1]
[1763975747631,0.4506,2813.1,2812.2,0.1119]
[1763975747858,0.4506,2813.1,2811.3,3.55701777]
[1763975747859,0.4506,2813.1,2811.1,0.1119]
[1763975748013,0.229,2813.0,2811.6,7.0572352]
[1763975748211,0.4506,2813.1,2811.3,0.1916]
[1763975748545,0.4506,2813.1,2812.3,0.101]
[1763975748746,0.1942,2813.8,2813.0,0.1916]
[1763975748933,0.1942,2813.8,2813.1,0.1]
[1763975749132,0.1942,2813.8,2813.3,0.1]
[1763975749333,0.1942,2813.8,2813.1,0.1]
[1763975749642,0.6448,2813.8,2812.9,0.405504]
[1763975749948,0.1942,2813.8,2813.3,0.1]
[1763975750150,0.1942,2814.1,2813.1,0.405504]
[1763975750311,0.1942,2814.1,2812.9,0.597104]
[1763975750629,0.1942,2815.0,2812.9,0.597104]
[1763975750630,0.4506,2814.6,2813.1,7.0572352]
[1763975750835,0.1942,2815.0,2814.0,0.405504]
[1763975751033,0.4506,2815.3,2814.4,0.1]
[1763975751268,0.4506,2815.3,2814.2,0.405504]
[1763975751853,0.4506,2815.3,2814.3,0.1]
[1763975752071,0.4506,2815.3,2814.5,0.1]
[1763975752273,0.4506,2815.3,2813.6,0.1916]
[1763975752440,0.4506,2815.3,2813.6,0.405504]
[1763975752642,0.4506,2815.3,2813.6,0.634504]
[1763975752836,0.4506,2815.3,2814.1,0.1]
[1763975753071,0.4506,2815.3,2814.8,0.1]
[1763975753259,0.4506,2815.3,2813.9,0.405504]
[1763975753461,0.1364,2815.5,2814.7,0.1]
[1763975753660,0.4506,2815.4,2814.7,0.1]
[1763975753865,0.4506,2815.4,2814.6,0.1]
[1763975754163,0.4506,2815.4,2814.5,0.1]
[1763975754346,0.4506,2815.4,2815.0,0.1]
[1763975754544,0.1364,2815.5,2814.5,0.03553028]
[1763975754545,0.1364,2815.5,2814.6,0.405504]
[1763975754746,0.1364,2815.5,2815.0,0.405504]
[1763975755101,0.4506,2815.4,2814.7,0.1]
[1763975755379,0.587,2815.5,2815.0,0.1]
[1763975755694,0.587,2815.5,2814.4,0.405504]
[1763975755695,0.1364,2815.5,2815.1,0.1]
[1763975755981,0.4854,2815.2,2814.6,0.1127]
[1763975756278,0.4854,2815.2,2814.7,0.1]
[1763975756455,0.4506,2815.1,2814.7,0.1]
[1763975756650,0.4506,2815.1,2814.3,0.1127]
[1763975756651,0.1942,2814.8,2814.3,0.1127]
[1763975756885,0.6796,2814.8,2814.3,0.1127]
[1763975757073,0.6796,2814.8,2814.3,0.2127]
[1763975757241,1.1302,2814.8,2814.3,0.2127]
[1763975757443,0.1942,2815.6,2814.3,0.1127]
[1763975757444,0.4506,2815.2,2814.3,0.1127]
[1763975757639,0.4506,2815.5,2814.3,0.3051]
[1763975757854,0.4506,2815.5,2815.0,0.1]
[1763975758054,0.4506,2815.5,2814.4,0.405504]
[1763975758883,0.4506,2815.5,2814.4,1.31249664]
[1763975759180,0.4506,2815.5,2814.9,0.1]
[1763975759572,0.4506,2815.5,2815.0,0.1]
[1763975759756,0.4506,2815.5,2814.9,0.1]
[1763975760501,0.4506,2815.5,2814.0,0.90699264]
[1763975760502,0.4854,2815.0,2813.8,0.1127]
[1763975760656,0.4506,2815.5,2814.5,0.1]
[1763975760843,0.4506,2815.5,2813.8,0.3417]
[1763975760844,0.4506,2815.5,2814.1,0.405504]
[1763975761239,0.4506,2815.5,2814.2,0.1924]
[1763975761444,0.4506,2815.5,2814.7,0.1]
[1763975761689,0.4506,2815.5,2814.5,0.229]
[1763975761849,0.4506,2815.5,2814.9,0.1]
[1763975762249,0.4506,2815.5,2814.2,0.1924]
[1763975762445,0.4506,2815.5,2814.3,0.405504]
[1763975763279,0.4506,2815.5,2813.7,0.1]
[1763975763280,0.6796,2814.4,2813.7,0.1]
[1763975763445,0.4854,2813.9,2813.0,0.41521565]
[1763975763651,0.4854,2813.8,2812.6,0.1924]
[1763975763848,0.1924,2815.5,2813.5,7.0572352]
[1763975764184,0.1942,2815.6,2814.8,0.1]
[1763975764365,0.1942,2815.6,2814.1,0.405504]
[1763975764366,0.4506,2815.5,2814.5,0.505504]
[1763975764679,0.1942,2815.6,2814.7,0.405504]
[1763975765085,0.1942,2815.6,2814.7,0.85621318]
[1763975765269,0.4506,2815.5,2814.3,0.1]
[1763975765589,0.4506,2815.5,2814.6,0.1]
[1763975765880,0.1942,2815.6,2815.0,0.1]
[1763975766082,0.1942,2815.6,2814.5,0.1924]
[1763975766241,0.4506,2815.5,2814.2,0.1127]
[1763975766648,0.4506,2815.5,2814.2,0.1]
[1763975766880,0.4506,2815.5,2814.0,0.229]
[1763975767054,0.4506,2815.5,2814.4,0.1]
[1763975767255,0.4526,2815.5,2814.4,0.1]
[1763975767461,0.6576,2814.5,2813.7,0.1127]
[1763975768095,0.4746,2814.4,2813.9,0.1]
[1763975768382,0.6576,2814.5,2813.6,0.001]
[1763975768587,0.1911,2814.7,2814.0,0.1]
[1763975768959,0.4746,2814.6,2813.6,0.001]
[1763975769159,0.4746,2814.6,2813.6,0.406504]
[1763975769476,0.4746,2814.6,2813.7,0.1]
[1763975769673,0.4746,2814.6,2813.6,0.001]
[1763975769674,0.1911,2813.7,2813.6,0.001]
[1763975769879,0.6576,2813.7,2813.6,0.001]
[1763975770253,1.1322,2813.7,2813.6,0.001]
[1763975770895,0.1911,2814.7,2813.6,0.001]
[1763975770896,0.1911,2814.1,2813.6,0.001]
[1763975771062,0.4746,2814.4,2813.6,0.1934]
[1763975771263,0.4746,2814.3,2813.6,0.001]
[1763975771467,0.1911,2813.7,2813.6,0.001]
[1763975771783,0.4746,2814.3,2813.6,0.101]
[1763975771948,0.1911,2814.7,2813.6,0.001]
[1763975772152,0.32583805,2814.6,2813.6,0.001]
[1763975772382,0.32583805,2814.5,2814.1,0.1]
[1763975772549,0.32583805,2814.4,2814.0,0.1]
[1763975772749,0.1911,2814.7,2814.0,0.1]
[1763975772989,0.8009736,2814.6,2813.8,0.1]
[1763975773153,0.8009736,2814.6,2814.1,0.1]
[1763975773154,0.3263736,2814.5,2814.1,0.1]
[1763975773355,0.3263736,2814.4,2813.6,0.598904]
[1763975773550,0.1911,2814.9,2814.5,0.1]
[1763975773861,0.32710551,2814.8,2814.2,0.229]
[1763975774061,0.32710551,2814.7,2814.1,0.1127]
[1763975774390,0.6657,2814.9,2813.6,0.101]
[1763975774391,0.4665,2814.2,2813.6,0.101]
[1763975774567,0.3274589,2814.1,2813.6,0.001]
[1763975774755,0.3274589,2814.0,2813.6,0.101]
[1763975775081,0.4746,2814.3,2813.6,0.001]
[1763975775286,1.08294378,2814.2,2813.6,0.101]
[1763975775487,0.32746628,2814.1,2813.6,0.001]
[1763975775687,0.32746628,2814.0,2813.6,0.001]
[1763975775864,0.32746628,2813.9,2813.6,0.001]
[1763975776065,0.4665,2813.7,2813.6,0.001]
[1763975776272,0.79396628,2813.7,2813.6,0.001]
[1763975776494,2.02397424,2813.7,2813.6,0.001]
[1763975776791,2.43113957,2813.7,2813.6,0.001]